bitfinex/quotes_ETHUSD_20241212
["timestamp","ask_amount","ask_price","bid_price","bid_amount"]
[1734019056349,0.4269,3957.1,3956.3,1.5045]
[1734019056650,5.38650946,3957.0,3956.3,1.5045]
[1734019056815,0.55,3956.8,3956.3,1.5045]
[1734019057154,2.52761,3956.3,3955.3,1.6623]
[1734019057351,0.55,3956.2,3955.3,1.6623]
[1734019058285,0.55,3956.7,3955.3,1.6623]
[1734019058456,0.55,3956.7,3955.4,0.16623]
[1734019058457,0.55,3956.6,3955.4,0.16623]
[1734019058614,0.55,3956.6,3955.5,1.6576]
[1734019058819,0.55,3956.8,3955.5,1.6576]
[1734019060541,0.55,3956.6,3955.5,1.6576]
[1734019060830,0.55,3956.8,3955.5,1.6576]
[1734019061261,0.55,3957.0,3955.5,1.6576]
[1734019061417,0.4269,3957.1,3955.6,1.69586]
[1734019061762,0.12544645,3957.4,3955.7,1.5301]
[1734019062065,0.4269,3957.7,3955.7,1.5301]
[1734019062843,0.55,3957.6,3955.7,1.5301]
[1734019063032,0.55,3957.3,3955.7,1.5301]
[1734019063245,0.55,3957.3,3955.9,1.566]
[1734019064121,0.55,3957.0,3955.9,1.566]
[1734019064577,0.55,3957.1,3955.9,1.566]
[1734019064755,3.0771,3957.1,3955.9,1.566]
[1734019064920,0.55,3957.3,3955.9,1.566]
[1734019065121,0.55,3957.1,3955.9,1.566]
[1734019066422,0.55,3957.3,3955.9,1.566]
[1734019067138,3.07697,3957.3,3955.9,1.566]
[1734019068261,0.55,3957.0,3955.9,1.566]
[1734019068830,0.55,3957.2,3955.9,1.566]
[1734019069029,0.55,3957.0,3955.9,1.566]
[1734019074347,0.73837778,3957.0,3955.9,1.566]
[1734019074552,0.55,3957.0,3955.9,1.566]
[1734019075387,3.07721,3957.0,3955.9,1.566]
[1734019075753,0.55,3957.0,3955.9,1.566]
[1734019076157,0.32583586,3956.9,3955.9,1.566]
[1734019076506,0.55,3956.8,3955.9,1.566]
[1734019078861,0.55,3957.0,3955.9,1.566]
[1734019079176,0.55,3957.3,3956.0,1.5017]
[1734019081873,3.55135434,3957.4,3956.0,1.5017]
[1734019081874,0.55,3956.5,3956.0,1.5017]
[1734019082051,0.55,3956.3,3956.0,1.5017]
[1734019082977,0.55,3956.3,3954.9,2.30767276]
[1734019082978,2.52769,3956.2,3955.0,1.6024]
[1734019083275,0.55,3956.3,3955.0,1.6024]
[1734019084164,0.55,3956.4,3955.0,1.6024]
[1734019085758,3.07755,3956.4,3955.0,1.6024]
[1734019086073,0.32034673,3956.3,3955.0,1.6024]
[1734019086378,0.55,3956.2,3955.0,1.6024]
[1734019089276,0.55,3956.2,3955.5,1.6435]
[1734019089484,1.03389369,3957.3,3955.5,1.6435]
[1734019089680,2.52703,3957.3,3955.5,1.6435]
[1734019089979,0.67730965,3957.4,3955.5,1.6435]
[1734019089980,0.12854628,3956.8,3955.5,1.6435]
[1734019090177,2.84747396,3957.2,3955.5,1.6435]
[1734019090178,0.32043396,3957.2,3955.5,1.6435]
[1734019090379,0.32043396,3957.2,3955.1,1.05197288]
[1734019090380,0.32043396,3957.2,3955.8,2.30767276]
[1734019090555,0.25040965,3957.4,3955.9,1.5961]
[1734019090743,2.65136434,3957.4,3955.9,1.5961]
[1734019091157,2.52724,3956.9,3955.9,1.5961]
[1734019091356,2.52711,3957.1,3955.9,1.5961]
[1734019091740,1.46079369,3957.3,3955.9,1.5961]
[1734019091942,2.52735,3956.8,3955.9,1.5961]
[1734019092146,3.07739,3956.7,3955.9,1.5961]
[1734019092578,0.55,3956.3,3955.9,1.5961]
[1734019093259,0.55,3956.5,3955.9,1.5961]
[1734019093459,0.55,3956.6,3955.9,1.5961]
[1734019093688,0.55,3956.4,3955.9,1.5961]
[1734019094068,2.52729,3956.8,3955.9,1.5961]
[1734019094268,0.55,3956.7,3955.9,1.5961]
[1734019095192,2.52745,3956.6,3955.9,1.5961]
[1734019095368,0.55,3956.5,3955.9,1.5961]
[1734019095574,0.55,3956.5,3954.6,2.30767276]
[1734019095575,2.73457276,3956.2,3954.8,2.64287288]
[1734019095759,0.55,3955.5,3954.8,1.5909]
[1734019095965,3.07813,3955.5,3954.8,1.5909]
[1734019096582,0.55,3955.7,3954.8,1.5909]
[1734019096757,1.86018005,3955.8,3954.8,1.5909]
[1734019096960,0.55,3955.4,3954.8,1.5909]
[1734019097459,0.55,3955.6,3954.8,1.5909]
[1734019098005,3.07793,3955.8,3954.8,1.5909]
[1734019098293,0.55,3955.6,3954.8,1.5909]
[1734019098708,0.55,3955.7,3954.8,1.5909]
[1734019099212,0.12896465,3955.8,3954.8,1.5909]
[1734019099213,0.55,3955.4,3954.8,1.5909]
[1734019099799,0.55,3955.7,3954.8,1.5909]
[1734019100366,3.07801,3955.7,3954.8,1.5909]
[1734019101186,0.55,3955.7,3954.8,1.5909]
[1734019101396,3.07802,3955.7,3954.8,1.5909]
[1734019101599,0.55,3955.5,3954.8,1.5909]
[1734019103274,0.366849,3955.5,3954.8,1.5909]
[1734019104708,3.0,3955.9,3954.8,1.5909]
[1734019104868,0.25182892,3956.0,3954.8,1.5909]
[1734019105067,3.12365273,3956.0,3954.8,1.5909]
[1734019105268,0.55,3955.8,3954.8,1.5909]
[1734019105776,0.55,3955.6,3954.8,1.5909]
[1734019107000,3.07809,3955.6,3954.8,1.5909]
[1734019108244,0.55,3955.8,3954.8,1.5909]
[1734019109094,2.52807,3955.6,3954.8,1.5909]
[1734019109298,0.55,3955.4,3954.8,1.5909]
[1734019110212,0.55,3955.6,3954.8,1.5909]
[1734019110514,4.11891017,3955.9,3954.8,1.5909]
[1734019110515,0.55,3955.3,3954.8,1.5909]
[1734019110810,0.55,3955.0,3954.8,1.5909]
[1734019111012,1.08860728,3955.0,3954.8,1.5909]
[1734019111380,1.08860728,3955.0,3953.4,1.05197288]
[1734019111381,1.08860728,3955.0,3953.5,1.6377]
[1734019111811,2.30767276,3954.9,3953.6,1.6004]
[1734019112016,2.85767276,3954.5,3953.6,1.6004]
[1734019112422,0.55,3954.5,3953.6,1.6004]
[1734019112575,0.4269,3954.7,3953.6,1.6004]
[1734019112576,3.0787,3954.6,3953.6,1.6004]
[1734019113888,2.52876,3954.5,3953.6,1.6004]
[1734019114088,0.55,3954.4,3953.6,1.6004]
[1734019114506,0.55,3954.2,3953.6,1.6004]
[1734019114901,3.07885,3954.4,3953.6,1.6004]
[1734019115106,2.52885,3954.4,3953.6,1.6004]
[1734019115301,0.55,3954.3,3953.6,1.6004]
[1734019115504,0.4269,3954.2,3952.6,1.537]
[1734019115815,0.55,3953.1,3952.6,1.537]
[1734019115979,0.55,3953.3,3952.6,1.537]
[1734019116180,0.55,3953.1,3952.6,1.537]
[1734019116382,2.52991,3952.7,3951.3,1.5782]
[1734019116599,0.55,3952.6,3951.3,1.5782]
[1734019116791,0.9769,3952.9,3951.3,1.5782]
[1734019117217,2.53,3952.6,3951.3,1.5782]
[1734019117384,0.9769,3952.9,3951.5,1.5979]
[1734019117385,2.53004,3952.5,3951.5,1.5979]
[1734019117586,0.55,3952.4,3951.5,1.5979]
[1734019119184,0.55,3952.1,3951.5,1.5979]
[1734019120422,0.55,3952.5,3951.5,1.5979]
[1734019120616,0.55,3952.7,3951.5,1.5979]
[1734019120781,0.55,3952.7,3951.7,1.5494]
[1734019121319,3.07996,3952.7,3951.7,1.5494]
[1734019121523,0.55,3952.7,3951.7,1.5494]
[1734019123197,2.30767276,3953.8,3951.7,1.5494]
[1734019123740,0.12684252,3954.1,3951.8,1.5237]
[1734019123913,0.28614153,3954.0,3952.0,1.5237]
[1734019124619,0.12875118,3953.7,3952.0,1.5237]
[1734019125810,0.55,3953.6,3952.0,1.5237]
[1734019126725,5.52899,3954.2,3952.0,1.5237]
[1734019126726,2.30767276,3954.2,3952.0,1.5237]
[1734019127691,0.55,3954.1,3952.0,1.5237]
[1734019127909,0.55,3954.1,3952.2,1.532]
[1734019128431,0.55,3953.5,3952.2,1.532]
[1734019128921,0.55,3953.7,3952.2,1.532]
[1734019129724,0.55,3953.7,3951.8,1.5225]
[1734019129725,0.55,3953.3,3951.8,1.5225]
[1734019129952,0.55,3952.9,3951.8,1.5225]
[1734019130130,0.55,3952.9,3951.9,1.69425]
[1734019130532,0.55,3953.2,3951.9,1.69425]
[1734019130924,0.55,3953.2,3951.9,1.542]
[1734019131123,2.30767276,3952.6,3951.2,1.542]
[1734019131446,0.55,3952.5,3951.2,1.542]
[1734019132114,0.55,3952.8,3951.2,1.542]
[1734019132615,3.07988,3952.8,3951.2,1.542]
[1734019132920,0.55,3952.6,3951.3,0.1542]
[1734019133838,0.55,3952.4,3951.2,1.542]
[1734019134611,3.08011,3952.4,3951.2,1.542]
[1734019134921,0.55,3952.2,3950.3,1.6372]
[1734019135127,3.0,3952.1,3950.3,1.6372]
[1734019135451,0.55,3952.0,3950.5,1.6372]
[1734019135932,5.5301,3952.5,3950.5,1.6372]
[1734019135933,0.55,3952.4,3950.5,1.6372]
[1734019136916,0.4269,3952.7,3950.8,1.6197]
[1734019137118,0.55,3952.6,3950.8,1.6197]
[1734019137380,0.55,3952.9,3950.8,1.6197]
[1734019137510,0.55,3952.9,3951.0,1.5424]
[1734019138219,3.55,3952.9,3951.0,1.5424]
[1734019138418,2.52985,3952.8,3951.0,1.5424]
[1734019138619,0.55,3952.7,3951.0,1.5424]
[1734019139713,0.55,3952.9,3951.0,1.5424]
[1734019139940,0.55,3952.7,3951.2,1.6549]
[1734019141020,3.08005,3952.5,3951.2,1.6549]
[1734019141258,0.55,3952.5,3951.2,1.6549]
[1734019141434,3.73850881,3952.5,3951.2,1.6549]
[1734019141651,3.55,3952.5,3951.2,1.6549]
[1734019141847,0.55,3952.3,3951.2,1.6549]
[1734019142376,0.4269,3953.5,3951.6,1.5644]
[1734019142577,0.1885186,3954.0,3952.0,1.5644]
[1734019142718,0.1885186,3954.0,3952.4,1.5644]
[1734019142921,0.1885186,3954.2,3952.4,1.5644]
[1734019143167,0.1885186,3954.1,3952.5,1.98570728]
[1734019143360,0.1885186,3954.0,3952.5,1.98570728]
[1734019143523,0.1885186,3954.5,3952.5,1.98570728]
[1734019143852,2.52897,3954.2,3952.5,1.5985]
[1734019144177,0.55,3954.0,3952.5,1.5985]
[1734019144326,0.55,3953.8,3952.5,1.5985]
[1734019145339,0.55,3953.9,3952.5,1.5985]
[1734019145544,0.73863925,3954.1,3952.5,1.5985]
[1734019145767,0.55,3953.9,3952.7,1.5979]
[1734019146368,0.55,3953.7,3952.7,1.5979]
[1734019146924,0.73861329,3954.0,3952.7,1.5979]
[1734019147238,0.55,3954.2,3952.7,1.5979]
[1734019147466,0.55,3954.4,3952.7,1.5979]
[1734019147662,0.86792345,3954.4,3952.9,1.6032]
[1734019147832,0.55,3954.2,3952.9,1.6032]
[1734019148027,0.73855666,3954.2,3952.9,1.59708814]
[1734019148229,0.55,3954.2,3952.9,1.59708814]
[1734019148474,0.55,3953.5,3952.9,1.59708814]
[1734019148963,0.55,3953.7,3952.9,1.59708814]
[1734019149677,0.55,3953.5,3952.9,1.59708814]
[1734019150241,0.55,3953.7,3952.9,1.59708814]
[1734019150780,0.55,3954.0,3952.9,1.59708814]
[1734019152431,0.55,3954.3,3952.9,1.59708814]
[1734019153249,3.26746294,3954.3,3952.9,1.59708814]
[1734019153459,3.07906,3954.1,3952.9,1.59708814]
[1734019153799,3.0794,3953.6,3952.9,1.59708814]
[1734019153991,0.55,3953.6,3952.5,1.6194]
[1734019154277,0.55,3953.7,3952.5,1.6194]
[1734019154784,0.55,3953.8,3952.5,1.6194]
[1734019154987,0.55,3953.6,3952.5,1.6194]
[1734019157130,0.13014312,3953.7,3952.5,1.6194]
[1734019157391,0.18851681,3954.1,3952.5,1.6194]
[1734019157898,3.0,3954.0,3952.5,1.6194]
[1734019158190,0.12445064,3954.1,3952.5,1.6194]
[1734019158537,0.55,3954.1,3952.5,1.6194]
[1734019158736,0.73852717,3954.1,3952.5,1.6194]
[1734019158937,0.55,3953.9,3952.5,1.6194]
[1734019160390,0.55,3953.5,3952.5,1.6194]
[1734019160606,2.52941,3953.5,3952.5,1.6194]
[1734019160740,0.9831,3953.4,3952.5,1.6194]
[1734019161591,0.55,3953.5,3952.5,1.6194]
[1734019161798,0.55,3953.3,3952.5,1.6194]
[1734019162838,0.55,3953.5,3952.5,1.6194]
[1734019163250,0.45241792,3954.0,3952.5,1.6194]
[1734019163436,0.54114815,3954.2,3952.5,1.6194]
[1734019163750,0.12567346,3954.3,3952.5,1.6194]
[1734019163963,0.18858517,3954.3,3952.5,2.67315301]
[1734019164200,0.18858517,3954.3,3952.7,1.5016]
[1734019164556,1.71459989,3954.8,3952.7,1.5016]
[1734019164557,4.05538168,3954.7,3952.7,1.5016]
[1734019164785,0.55,3954.5,3952.7,1.5016]
[1734019165098,0.55,3954.3,3952.9,1.5898]
[1734019166472,0.73861137,3954.3,3952.9,1.5898]
[1734019167689,0.18861137,3954.2,3952.9,1.5898]
[1734019167889,0.18861137,3954.1,3952.9,1.5898]
[1734019168142,3.26771137,3954.0,3952.9,1.5898]
[1734019168354,0.55,3953.3,3952.9,1.5898]
[1734019168853,3.28906114,3953.9,3952.9,1.5898]
[1734019168854,0.55,3953.4,3952.9,1.5898]
[1734019169136,0.73887982,3953.4,3952.9,1.5898]
[1734019169636,0.55,3953.2,3952.9,1.5898]
[1734019169993,0.73894178,3953.4,3952.9,1.5898]
[1734019170191,0.55,3953.2,3952.9,1.5898]
[1734019170985,0.55,3953.3,3952.9,1.5898]
[1734019171343,0.55,3953.4,3952.9,1.5898]
[1734019171841,0.55,3953.5,3952.9,1.5898]
[1734019172046,0.55,3953.3,3952.9,1.5898]
[1734019172253,0.55,3953.1,3952.9,1.5898]
[1734019173979,0.55,3953.4,3952.9,1.5898]
[1734019174142,0.18913937,3953.3,3952.9,1.5898]
[1734019174441,0.32677114,3953.9,3952.9,1.5898]
[1734019174644,0.18911028,3953.8,3952.9,1.5898]
[1734019174786,0.18911028,3953.7,3952.9,1.5898]
[1734019174990,0.12802866,3954.2,3952.9,1.5898]
[1734019175191,2.99002612,3954.4,3952.9,1.5898]
[1734019175192,0.18909839,3954.1,3952.9,1.5898]
[1734019175392,0.18909839,3954.0,3952.9,1.5898]
[1734019175592,0.18909839,3953.9,3952.9,1.5898]
[1734019175844,2.65293207,3954.5,3952.9,1.5898]
[1734019176148,0.18908786,3954.4,3952.9,1.5898]
[1734019176345,0.73908786,3954.3,3952.9,1.5898]
[1734019176496,0.55,3954.1,3952.9,1.5898]
[1734019178589,0.55,3954.4,3952.9,1.5898]
[1734019179232,0.55,3954.7,3952.9,1.5898]
[1734019180229,2.52879,3954.5,3952.9,1.5898]
[1734019180431,0.55,3954.4,3952.9,1.5898]
[1734019180639,0.55,3954.2,3953.0,1.5332]
[1734019181163,2.52864,3954.7,3953.0,1.5332]
[1734019181363,4.05538168,3955.1,3953.5,1.5332]
[1734019181563,1.05538168,3955.3,3953.5,1.5332]
[1734019181707,4.59455568,3955.8,3953.9,1.6455]
[1734019181913,2.52806,3955.6,3954.1,1.6455]
[1734019182808,0.66107282,3955.7,3954.1,1.6455]
[1734019183011,3.58313168,3956.1,3954.2,2.31112744]
[1734019183261,1.011114,3956.2,3954.6,2.31112744]
[1734019183564,2.52761,3956.4,3954.7,1.6455]
[1734019183565,0.12510673,3956.4,3954.7,1.6455]
[1734019183927,2.5275,3956.5,3954.7,1.6455]
[1734019184614,0.4331,3956.9,3954.7,1.6455]
[1734019184615,3.5581721,3956.9,3954.7,1.6455]
[1734019184947,0.79355832,3956.8,3955.1,1.5765]
[1734019185149,2.52729,3956.8,3955.1,1.5765]
[1734019185752,2.96012,3957.3,3955.1,1.5765]
[1734019186044,0.55,3956.9,3955.1,1.5765]
[1734019187512,0.12535102,3957.1,3955.5,1.5411]
[1734019187663,0.12535102,3957.1,3955.4,2.31112744]
[1734019187664,0.4331,3957.8,3955.9,1.5411]
[1734019187857,0.57442274,3957.7,3955.9,1.5411]
[1734019188069,3.0,3957.6,3955.9,1.5411]
[1734019188288,3.0,3957.5,3955.9,1.5411]
[1734019188657,2.52687,3957.5,3955.9,1.5411]
[1734019188860,0.55,3957.3,3955.9,1.5411]
[1734019189053,3.55,3957.6,3955.9,1.5411]
[1734019189271,3.55,3957.3,3955.9,1.5411]
[1734019189910,0.55,3957.3,3955.9,1.5411]
[1734019190210,0.55,3957.2,3955.9,1.5411]
[1734019190723,0.55,3957.3,3955.9,1.5411]
[1734019191212,0.55,3957.4,3955.9,1.5411]
[1734019191428,0.55,3957.4,3955.9,1.92632274]
[1734019191918,0.67535297,3957.4,3955.9,1.92632274]
[1734019192713,0.67535297,3957.4,3955.9,1.5411]
[1734019192714,3.55,3957.2,3955.9,1.5411]
[1734019193074,0.55,3957.2,3955.9,1.5411]
[1734019193380,3.07697,3957.3,3955.9,1.5411]
[1734019193713,0.55,3957.1,3955.9,1.5411]
[1734019195108,3.55,3957.1,3955.9,1.5411]
[1734019195287,0.55,3956.9,3955.9,1.5411]
[1734019195880,0.55,3957.2,3955.9,1.5411]
[1734019196714,3.55,3957.5,3955.9,1.5411]
[1734019197037,3.07697,3957.3,3955.9,1.5411]
[1734019197184,0.55,3957.1,3955.9,1.5411]
[1734019198992,0.55,3957.1,3954.8,0.39566274]
[1734019198993,0.55,3956.7,3954.9,1.6217]
[1734019199413,3.07731,3956.8,3955.1,1.6217]
[1734019199581,0.55,3957.1,3955.1,1.6217]
[1734019199782,2.52719,3957.0,3955.1,1.6217]
[1734019199978,0.802719,3956.9,3955.3,1.5113]
[1734019200882,0.55,3956.9,3955.3,1.5113]
[1734019201082,0.55,3956.9,3955.4,2.31112744]
[1734019201313,0.55,3956.9,3955.2,0.39328274]
[1734019201641,0.55,3956.9,3955.2,2.31112744]
[1734019201821,0.55,3956.7,3955.2,2.31112744]
[1734019202181,3.07739,3956.7,3955.2,2.31112744]
[1734019202385,0.55,3956.7,3955.3,1.6296]
[1734019202583,0.55,3956.8,3955.3,1.6296]
[1734019202787,0.55,3956.6,3955.5,1.5459]
[1734019203017,0.55,3956.6,3955.7,1.5459]
[1734019203586,0.55,3956.9,3955.7,1.5459]
[1734019204205,0.55,3957.1,3955.7,1.5459]
[1734019204612,3.0771,3957.1,3955.7,1.5459]
[1734019204893,0.55,3956.9,3955.7,1.5459]
[1734019206537,0.55,3956.9,3956.1,1.4873]
[1734019206966,2.52652,3958.0,3956.1,1.4873]
[1734019207113,2.84825,3958.3,3956.5,1.5218]
[1734019207443,2.52642,3958.2,3956.5,1.5218]
[1734019207630,0.12380616,3958.3,3956.9,1.6219]
[1734019207943,3.0,3958.6,3956.9,2.01520274]
[1734019208250,0.3219,3958.9,3956.9,2.01520274]
[1734019208413,2.65740655,3959.0,3957.3,1.4724]
[1734019208607,1.010561,3958.6,3957.3,1.4724]
[1734019210622,1.010561,3958.6,3957.6,2.31112744]
[1734019210845,0.45339028,3959.5,3957.8,1.5233]
[1734019211140,1.24542411,3959.4,3957.8,1.5233]
[1734019211349,1.24566144,3959.4,3957.8,1.5233]
[1734019211922,0.23527344,3959.3,3957.8,1.5233]
[1734019212244,1.010388,3959.4,3957.8,1.5233]
[1734019212445,0.15062639,3959.3,3958.0,1.5339]
[1734019212671,0.23523061,3959.4,3958.0,1.5339]
[1734019212814,2.52578,3959.2,3958.0,1.5339]
[1734019213019,2.52564,3959.4,3958.0,1.5339]
[1734019213236,0.55,3959.3,3958.0,1.5339]
[1734019213437,0.55,3959.1,3958.0,1.5339]
[1734019213820,0.23503611,3959.5,3958.5,1.4726]
[1734019214325,0.23520081,3959.3,3958.5,1.4726]
[1734019215365,2.52578,3959.2,3958.5,1.4726]
[1734019215665,0.23520081,3959.3,3958.5,1.4726]
[1734019215813,1.14958769,3959.2,3958.5,1.4726]
[1734019216013,0.55,3958.9,3958.5,1.4726]
[1734019216246,0.55,3958.8,3958.5,1.4726]
[1734019217249,0.55,3958.7,3958.5,1.4726]
[1734019217551,0.234889,3959.4,3958.5,1.4726]
[1734019217552,0.55,3959.1,3958.5,1.4726]
[1734019217753,0.55,3959.3,3958.5,1.4726]
[1734019217952,0.234889,3959.4,3958.5,1.4726]
[1734019218158,0.12518052,3959.6,3958.5,1.61986]
[1734019218337,0.3219,3960.5,3958.5,1.61986]
[1734019218338,0.234889,3960.1,3958.5,1.61986]
[1734019218543,2.52512,3960.2,3958.5,1.61986]
[1734019218739,0.23471973,3960.1,3958.5,1.61986]
[1734019218942,0.27598397,3960.0,3958.7,1.4809]
[1734019219148,1.010079,3960.1,3958.7,1.4809]
[1734019219335,0.12941062,3960.5,3958.7,1.4809]
[1734019219547,0.3219,3960.8,3958.7,1.4809]
[1734019219548,2.52508,3960.3,3958.7,1.4809]
[1734019220043,0.3219,3960.4,3958.7,1.4809]
[1734019220354,2.52531,3959.9,3958.7,1.4809]
[1734019220525,0.3219,3960.0,3958.7,1.4809]
[1734019220526,2.52545,3959.7,3958.7,1.4809]
[1734019220730,0.55,3959.6,3958.7,1.4809]
[1734019220941,2.52545,3959.7,3958.7,1.4809]
[1734019220942,0.55,3959.7,3958.7,1.4809]
[1734019221955,2.52492,3960.6,3958.7,1.4809]
[1734019222156,0.23457451,3960.4,3958.7,1.4809]
[1734019222329,2.5252,3960.1,3958.9,1.6244]
[1734019222528,2.75962451,3960.4,3958.9,1.6244]
[1734019223130,3.07512,3960.3,3958.9,1.6244]
[1734019223330,0.23457451,3960.4,3958.9,1.6244]
[1734019224230,0.1245946,3960.5,3958.9,1.6244]
[1734019224429,2.52493,3960.5,3959.0,1.84396027]
[1734019224646,2.31112744,3960.6,3959.0,1.84396027]
[1734019224843,0.55,3960.5,3959.0,1.84396027]
[1734019225623,2.52499,3960.4,3959.0,1.6136]
[1734019225823,0.55,3960.3,3959.0,1.6136]
[1734019226454,0.55,3960.2,3959.0,1.6136]
[1734019226659,0.55,3959.9,3959.0,1.6136]
[1734019226960,3.07515,3960.2,3959.0,1.6136]
[1734019227130,0.1253673,3960.6,3959.0,1.6136]
[1734019227131,0.55,3959.9,3959.0,1.6136]
[1734019227632,0.55,3960.1,3959.0,1.6136]
[1734019228247,3.07507,3960.3,3959.0,1.6136]
[1734019228443,2.31112744,3960.5,3959.0,1.6136]
[1734019228444,0.55,3960.5,3959.0,1.6136]
[1734019228649,0.46871182,3960.9,3959.0,1.6136]
[1734019228845,0.61498791,3960.9,3959.2,1.5731]
[1734019229235,0.23432111,3960.9,3959.2,1.5731]
[1734019229742,0.23432111,3960.9,3959.2,3.0]
[1734019229931,0.23432111,3960.9,3960.3,2.31112744]
[1734019230135,0.23432111,3960.9,3960.4,1.61304299]
[1734019230464,0.23432111,3960.9,3960.8,1.5878]
[1734019230638,0.23438657,3961.3,3960.9,1.5878]
[1734019230846,0.23438657,3961.3,3961.1,3.89892744]
[1734019231040,0.1646646,3961.4,3961.2,3.0252392]
[1734019231241,0.1646646,3961.4,3961.3,1.5547]
[1734019232338,0.1646646,3961.4,3961.3,1.5806]
[1734019232601,0.1646646,3961.4,3961.3,4.04978744]
[1734019232739,2.52304,3963.5,3961.4,1.5806]
[1734019232940,0.5232,3963.8,3961.7,2.31112744]
[1734019233140,0.12916998,3963.7,3961.5,3.0]
[1734019233381,0.9221,3964.2,3961.9,1.516]
[1734019233565,0.9221,3964.2,3961.8,3.0]
[1734019233566,0.9221,3964.2,3962.0,0.74458712]
[1734019233763,9.42694095,3963.9,3962.1,1.516]
[1734019234088,9.3,3963.9,3963.3,1.516]
[1734019234556,9.3,3963.9,3963.3,4.516]
[1734019234742,9.3,3963.9,3963.4,1.4728]
[1734019234944,9.3,3963.9,3963.6,1.6066]
[1734019235766,9.3,3963.9,3962.2,1.5069]
[1734019235973,2.52285,3963.8,3962.2,1.5069]
[1734019236481,3.07289,3963.8,3962.2,1.5069]
[1734019236730,0.55,3963.2,3962.2,1.5069]
[1734019236847,2.6543849,3963.7,3962.2,1.5069]
[1734019237052,0.55,3963.5,3962.2,1.5069]
[1734019237545,9.3,3963.9,3962.2,1.5069]
[1734019237807,9.3,3963.9,3962.5,2.92987116]
[1734019238098,9.3,3963.9,3962.6,1.6009]
[1734019238246,9.3,3963.9,3962.6,3.0]
[1734019238447,9.3,3963.9,3962.8,1.6009]
[1734019240262,0.55,3963.8,3962.8,1.6009]
[1734019240581,0.68162798,3963.8,3962.8,1.6009]
[1734019240892,2.52299,3963.6,3962.8,1.6009]
[1734019241094,0.68162798,3963.8,3962.8,1.6009]
[1734019241397,0.68162798,3963.8,3961.6,1.4681]
[1734019241398,2.5232,3963.3,3961.6,1.4681]
[1734019241561,0.55,3963.1,3961.6,1.4681]
[1734019241963,0.55,3963.3,3961.6,1.4681]
[1734019242178,0.55,3963.6,3961.6,1.4681]
[1734019242765,0.55,3963.4,3961.6,1.4681]
[1734019242989,0.55,3963.4,3961.8,1.4686]
[1734019243298,0.55,3963.3,3961.8,1.4686]
[1734019244665,0.55,3963.6,3961.8,1.4686]
[1734019244863,0.55,3962.9,3961.8,1.4686]
[1734019245372,0.55,3963.2,3961.8,1.4686]
[1734019245585,0.55,3963.2,3961.9,0.161541]
[1734019245988,3.07323,3963.2,3961.9,0.161541]
[1734019246562,0.55,3963.2,3961.9,0.161541]
[1734019246781,0.55,3963.6,3961.9,0.161541]
[1734019247180,0.55,3963.6,3962.0,1.5285]
[1734019247380,2.1,3963.6,3962.2,1.5285]
[1734019247580,1.55,3963.6,3962.2,1.5285]
[1734019249078,0.55,3963.5,3962.2,1.5285]
[1734019249620,0.55,3963.3,3962.2,1.5285]
[1734019249823,0.55,3963.1,3962.2,1.5285]
[1734019250331,0.55,3963.0,3962.2,1.5285]
[1734019250679,0.55,3963.3,3962.2,1.5285]
[1734019251808,0.55,3963.1,3962.2,0.40684271]
[1734019252005,0.55,3962.5,3962.2,0.40684271]
[1734019252211,0.55,3962.3,3962.2,0.40684271]
[1734019252431,0.55,3962.3,3960.5,2.92987116]
[1734019252593,0.55,3962.3,3960.7,0.36]
[1734019253089,0.55,3961.7,3960.7,0.36]
[1734019253617,3.55,3961.8,3960.7,0.36]
[1734019253821,4.60718,3961.6,3960.7,0.36]
[1734019254029,0.55,3961.4,3960.8,0.24862865]
[1734019254414,0.55,3961.0,3960.8,0.24862865]
[1734019254557,0.55,3961.4,3960.8,0.24862865]
[1734019254718,0.55,3961.4,3959.2,2.92987116]
[1734019254719,0.55,3961.0,3959.2,2.92987116]
[1734019254923,3.07465,3961.0,3959.3,0.65298712]
[1734019255153,0.55,3960.7,3959.3,0.36]
[1734019255465,0.55,3960.7,3959.4,1.5867]
[1734019259060,0.55,3960.7,3959.8,1.5944]
[1734019259232,0.71,3961.7,3959.8,1.5944]
[1734019259431,2.52409,3961.9,3959.8,1.5944]
[1734019260159,2.92987116,3961.5,3959.8,1.5944]
[1734019260338,0.12318543,3960.2,3959.8,1.5944]
[1734019260544,0.55,3960.1,3959.8,1.5944]
[1734019261583,0.55,3960.1,3959.8,1.05067165]
[1734019262292,0.55,3960.1,3959.8,0.12697551]
[1734019263759,0.55,3960.1,3957.9,3.0]
[1734019264063,0.55,3960.1,3958.0,1.46598712]
[1734019265171,0.55,3960.1,3958.8,1.4441]
[1734019265327,0.12318543,3960.2,3958.9,4.4441]
[1734019265528,0.12318543,3960.2,3959.0,1.4441]
[1734019266753,0.55,3960.1,3959.0,1.4441]
[1734019266946,0.55,3960.1,3959.0,1.58851]
[1734019267143,1.4546,3961.0,3959.0,1.58851]
[1734019267349,2.92987116,3961.7,3959.0,1.58851]
[1734019267350,1.4546,3961.6,3959.0,1.58851]
[1734019267556,2.52436,3961.4,3959.0,1.58851]